fUST/lending_fUST_20241213
["ID","MTS","AMOUNT","RATE_DAILY","PERIOD"]
[345209540,1734087055354,-500.0,0.00027945,7]
[345209541,1734087055365,-500.0,0.00027945,7]
[345209542,1734087055375,-482.8423708,0.00027945,7]
[345209543,1734087055385,-500.0,0.00027945,7]
[345209544,1734087055395,-500.0,0.00027945,7]
[345209545,1734087055408,-500.0,0.00027945,7]
[345209546,1734087055419,-500.0,0.00027945,7]
[345209547,1734087055430,-744.67,0.00027945,7]
[345209548,1734087055440,-514.84,0.00027945,7]
[345209549,1734087055450,-580.86,0.00027945,7]
[345209550,1734087055460,-1144.78,0.00027945,7]
[345209551,1734087055470,-500.0,0.00027945,7]
[345209552,1734087055482,-500.0,0.00027945,7]
[345209553,1734087055492,-500.0,0.00027945,7]
[345209554,1734087055502,-500.0,0.00027945,7]
[345209555,1734087055512,-500.0,0.00027945,7]
[345209556,1734087055524,-500.0,0.00027945,7]
[345209557,1734087055534,-500.0,0.00027945,7]
[345209558,1734087055544,-4742.0,0.00027945,7]
[345209559,1734087055555,-1430.09,0.00027945,7]
[345209560,1734087055567,-500.0,0.00027945,7]
[345209561,1734087055576,-2786.27,0.00027945,7]
[345209562,1734087055587,-500.0,0.00027945,7]
[345209563,1734087055597,-2195.65135294,0.00027945,7]
[345209564,1734087217398,-204.8079224,0.0002302,2]
[345209565,1734087302694,1780.28,0.000256,60]
[345209569,1734087631345,169.275339,0.00013973,2]
[345210035,1734088244630,-300.0,0.00023,2]
[345210037,1734088244640,-414.0,0.00023,2]
[345210039,1734088244649,-205.522174,0.00023972,2]
[345210041,1734088244659,-300.0,0.00023999,2]
[345210043,1734088244668,-10400.1958394,0.00024,2]
[345210045,1734088244677,-300.0,0.00024,2]
[345210047,1734088244687,-300.0,0.00024,2]
[345210049,1734088244697,-364.50147692,0.000249,2]
[345210051,1734088244706,-500.0,0.00024973,2]
[345210053,1734088244715,-500.0,0.00024973,2]
[345210056,1734088244726,-500.67853652,0.00024973,2]
[345210058,1734088244740,-190.59891077,0.00024999,2]
[345210060,1734088244752,-337.28803532,0.00024999,2]
[345210061,1734088244765,-500.0,0.00024999,2]
[345210062,1734088244778,-500.0,0.00024999,2]
[345210063,1734088244791,-500.0,0.00024999,2]
[345210064,1734088244804,-500.0,0.00024999,2]
[345210065,1734088244815,-201.68169729,0.00024999,2]
[345210066,1734088244826,-365.60519647,0.00024999,2]
[345210067,1734088244837,-500.0,0.00024999,2]
[345210068,1734088244850,-500.0,0.00024999,2]
[345210069,1734088244866,-500.0,0.00024999,2]
[345210070,1734088244878,-500.0,0.00024999,2]
[345210071,1734088244890,-500.0,0.00024999,2]
[345210072,1734088244902,-500.0,0.00024999,2]
[345210073,1734088244915,-494.9492577,0.00024999,2]
[345210074,1734088244927,-500.0,0.00024999,2]
[345210075,1734088244940,-500.0,0.00024999,2]
[345210076,1734088244953,-484.33925574,0.00024999,2]
[345210077,1734088244965,-51249.21418897,0.00025,2]
[345210078,1734088244976,-297.81152398,0.00025,2]
[345210079,1734088244989,-976575.72948638,0.00025,2]
[345210080,1734088245005,-17359.19952992,0.00025,2]
[345210127,1734088246795,-152.0,0.00024987,2]
[345210130,1734088246809,-715.31478,0.00025,2]
[345210145,1734088691295,167.965556,0.00013973,2]
[345210848,1734089310747,3506.6,0.000256,60]
[345210851,1734089320100,1937.81,0.0001999,2]
[345210906,1734089431974,-160.0,0.00022,2]
[345210908,1734089431984,-126.58,0.00023,2]
[345210912,1734089432010,-173.86363486,0.00023,2]
[345210914,1734089432020,-193.17499,0.00023,2]
[345210916,1734089432029,-160.0,0.00023014,2]
[345210918,1734089432039,-971.43635999,0.00023999,2]
[345210920,1734089432050,-2131.45573571,0.00023999,2]
[345210979,1734089437838,-229.7608802,0.00023999,2]
[345210980,1734089437847,-300.4,0.00024,2]
[345210981,1734089437857,-300.0,0.00024,2]
[345210982,1734089437866,-300.0,0.00024,2]
[345210983,1734089437880,-194.42585979,0.00024081,2]
[345210984,1734089437890,-250.0,0.00024181,2]
[345210985,1734089437899,-527.61224722,0.00024821,2]
[345210986,1734089437909,-1325.56523127,0.000249,2]
[345210987,1734089437919,-181.189,0.00024999,8]
[345210988,1734089437930,-300.0,0.00024999,2]
[345210989,1734089437941,-300.0,0.00024999,2]
[345210990,1734089437951,-236.10162473,0.00024999,2]
[345210991,1734089437961,-500.0,0.00024999,2]
[345210992,1734089437971,-500.0,0.00024999,2]
[345210993,1734089437980,-500.0,0.00024999,2]
[345210994,1734089437989,-500.0,0.00024999,2]
[345210995,1734089437999,-500.0,0.00024999,2]
[345210996,1734089438009,-500.0,0.00024999,2]
[345210997,1734089438018,-500.0,0.00024999,2]
[345210998,1734089438027,-500.0,0.00024999,2]
[345210999,1734089438037,-391.90915862,0.00024999,2]
[345211000,1734089438046,-500.0,0.00024999,2]
[345211001,1734089438056,-220.97287557,0.00024999,2]
[345211002,1734089438065,-500.0,0.00024999,2]
[345211003,1734089438075,-617.75085935,0.00024999,2]
[345211004,1734089438086,-348.11452924,0.00024999,2]
[345211005,1734089438096,-500.0,0.00024999,2]
[345211006,1734089438105,-548.43392558,0.00024999,2]
[345211007,1734089438114,-425.70841593,0.00024999,2]
[345211008,1734089438123,-500.0,0.00024999,2]
[345211009,1734089438133,-532.40018307,0.00024999,2]
[345211010,1734089438142,-500.0,0.00024999,2]
[345211011,1734089438152,-14741.25622199,0.00025,2]
[345211012,1734089438164,-21893.0035187,0.00025,2]
[345211013,1734089438175,-3528.61022315,0.00025,2]
[345211014,1734089438187,-581.65499999,0.00025,2]
[345211045,1734089439884,-8299.7803487,0.00025,2]
[345211046,1734089439931,-3367.03604392,0.00025,2]
[345211250,1734089443495,-50454.92484725,0.00025,2]
[345211252,1734089443505,-151.0,0.00025,10]
[345211254,1734089443514,-1870.6465143,0.00025,7]
[345211255,1734089443524,-148736.65021135,0.00025,2]
[345211256,1734089443537,-33937.74995523,0.00025,2]
[345211272,1734089446118,-1035.93478882,0.00025,2]
[345211273,1734089446181,-4383.82809,0.00025,2]
[345211503,1734089683226,162.337186,0.00013973,2]
[345211599,1734090629642,160.529948,0.00013973,2]
[345211628,1734090632052,-160.0,0.00022,2]
[345211630,1734090632062,-193.17499,0.00023,2]
[345211632,1734090632072,-161.0,0.00023014,2]
[345211634,1734090632082,-169.735425,0.00023224,2]
[345211636,1734090632092,-250.0,0.00023464,2]
[345211639,1734090632102,-601.0595034,0.00023664,2]
[345211641,1734090632111,-369.61709634,0.000249,2]
[345211643,1734090632127,-265.80788597,0.000249,2]
[345211718,1734090638100,-1366.98524291,0.000249,2]
[345211720,1734090638110,-181.18972529,0.00024999,8]
[345211722,1734090638119,-300.0,0.00024999,2]
[345211724,1734090638128,-300.0,0.00024999,2]
[345211725,1734090638138,-22401.70411689,0.00025,2]
[345211728,1734090638161,-7976.69840019,0.00025,2]
[345211973,1734090644547,-113385.21808495,0.00025,2]
[345211975,1734090644557,-10364.0,0.00025,2]
[345211977,1734090644567,-511.05,0.00025,2]
[345211978,1734090644577,-180.634192,0.00025039,2]
[345211979,1734090644587,-160.529948,0.00025156,2]
[345211981,1734090644596,-2002.41022518,0.00025499,2]
[345211983,1734090644609,-180.634192,0.00025507,2]
[345211984,1734090644619,-180.634192,0.00025975,2]
[345211986,1734090644629,-500.0,0.00025993,2]
[345211988,1734090644639,-500.0,0.00025993,2]
[345211990,1734090644649,-500.0,0.00025993,2]
[345211992,1734090644659,-500.0,0.00025993,2]
[345211994,1734090644670,-500.0,0.00025993,2]
[345211996,1734090644680,-500.0,0.00025993,2]
[345211998,1734090644691,-500.0,0.00025993,2]
[345212000,1734090644700,-500.0,0.00025993,2]
[345212002,1734090644710,-500.0,0.00025993,2]
[345212004,1734090644719,-500.0,0.00025993,2]
[345212006,1734090644729,-331.5077871,0.00025993,2]
[345212008,1734090644739,-500.0,0.00025993,2]
[345212010,1734090644749,-500.0,0.00025993,2]
[345212012,1734090644759,-500.0,0.00025993,2]
[345212014,1734090644768,-500.0,0.00025993,2]
[345212016,1734090644777,-500.0,0.00025993,2]
[345212018,1734090644787,-500.0,0.00025993,2]
[345212020,1734090644797,-500.0,0.00025993,2]
[345212022,1734090644807,-500.0,0.00025993,2]
[345212024,1734090644816,-532.96210807,0.00025993,2]
[345212026,1734090644825,-500.0,0.00025993,2]
[345212028,1734090644835,-442.57084159,0.00025993,2]
[345212029,1734090644844,-500.0,0.00025993,2]
[345212031,1734090644854,-500.0,0.00025993,2]
[345212034,1734090644864,-500.0,0.00025993,2]
[345212036,1734090644873,-304.67655103,0.00025993,2]
[345212037,1734090644883,-500.0,0.00025993,2]
[345212040,1734090644894,-500.0,0.00025993,2]
[345212042,1734090644904,-500.0,0.00025993,2]
[345212043,1734090644914,-500.0,0.00025993,2]
[345212045,1734090644924,-500.0,0.00025993,2]
[345212047,1734090644934,-500.0,0.00025993,2]
[345212049,1734090644944,-500.0,0.00025993,2]
[345212051,1734090644953,-176.02295791,0.00025993,2]
[345212053,1734090644963,-500.0,0.00025993,2]
[345212055,1734090644973,-500.0,0.00025993,2]
[345212057,1734090644982,-211.02402796,0.00025993,2]
[345212059,1734090644993,-500.0,0.00025993,2]
[345212061,1734090645004,-500.0,0.00025993,2]
[345212064,1734090645014,-500.0,0.00025993,2]
[345212065,1734090645024,-500.0,0.00025993,2]
[345212067,1734090645034,-20806.45817,0.00026,5]
[345212069,1734090645044,-2002.41022518,0.00026099,2]
[345212071,1734090645053,-180.634192,0.00026443,2]
[345212073,1734090645063,-386.979,0.0002654,2]
[345212075,1734090645072,-877.84695,0.00026562,15]
[345212076,1734090645083,-1939.993,0.00026668,2]
[345212077,1734090645093,-2002.41022518,0.00026698,2]
[345212078,1734090645103,-180.634192,0.00026911,2]
[345212079,1734090645112,-420.0,0.00027082,2]
[345212080,1734090645122,-25280.14425717,0.00027297,3]
[345212081,1734090645131,-2002.41022518,0.00027297,2]
[345212082,1734090645140,-300.0,0.000273,13]
[345212083,1734090645149,-1000.0,0.000273,2]
[345212084,1734090645160,-153.9401175,0.00027337,2]
[345212085,1734090645170,-500.744659,0.00027373,2]
[345212086,1734090645180,-500.79720908,0.00027373,2]
[345212087,1734090645189,-500.0,0.00027373,2]
[345212088,1734090645199,-500.0,0.00027373,2]
[345212089,1734090645208,-500.30252696,0.00027373,2]
[345212090,1734090645218,-500.0,0.00027373,2]
[345212091,1734090645228,-500.0,0.00027373,2]
[345212092,1734090645238,-500.0,0.00027373,2]
[345212093,1734090645250,-500.66116952,0.00027373,2]
[345212095,1734090645263,-500.0,0.00027373,2]
[345212097,1734090645273,-605.99316657,0.00027373,2]
[345212099,1734090645282,-500.0,0.00027373,2]
[345212101,1734090645292,-172.66344044,0.00027373,2]
[345212103,1734090645302,-165.27113731,0.00027396,2]
[345212105,1734090645312,-9147.66201877,0.00027397,2]
[345212174,1734090645955,-152.0,0.00025641,2]
[345212176,1734090645965,-465.92825191,0.00027222,15]
[345213879,1734091832108,-313.74712519,0.00024264,2]
[345213880,1734091832118,-185.594808,0.00024364,2]
[345213881,1734091832128,-172.337014,0.00025577,2]
[345213882,1734091832138,-755.54672137,0.00025892,2]
[345213883,1734091832214,-1902.19820383,0.00025892,2]
[345213884,1734091832224,-301.04308994,0.0002593,2]
[345213885,1734091832234,-1529.96991524,0.00026,3]
[345213886,1734091832247,-3401.4461329,0.00026,3]
[345213887,1734091832257,-370.566,0.0002603,2]
[345213888,1734091832266,-301.04308993,0.00026478,2]
[345213889,1734091832276,-300.0,0.00026573,2]
[345213890,1734091832285,-300.0,0.00026574,2]
[345213891,1734091832295,-10025.75633158,0.00026946,2]
[345213892,1734091832305,-301.04308993,0.00027025,2]
[345213893,1734091832314,-180.77693486,0.00027125,15]
[345213894,1734091832325,-152.0,0.00027135,2]
[345213895,1734091832335,-10025.75633158,0.00027173,2]
[345213896,1734091832344,-8536.06603115,0.00027297,3]
[345213929,1734091838085,-16744.07822602,0.00027297,3]
[345213931,1734091838095,-1085.6023146,0.00027297,2]
[345213933,1734091838104,-300.0,0.000273,13]
[345213935,1734091838114,-150.0,0.000273,2]
[345213937,1734091838124,-840.148,0.00027303,15]
[345213939,1734091838134,-1085.6023146,0.00027366,2]
[345213941,1734091838144,-500.0,0.00027373,2]
[345213943,1734091838155,-498.73878151,0.00027373,2]
[345213945,1734091838164,-500.0,0.00027373,2]
[345213947,1734091838173,-483.16607858,0.00027373,2]
[345213949,1734091838183,-500.0,0.00027373,2]
[345213952,1734091838192,-215.84120462,0.00027396,2]
[345213954,1734091838202,-559.21801201,0.00027396,2]
[345213957,1734091838211,-356.78044755,0.00027396,2]
[345213960,1734091838221,-644.96406123,0.00027396,2]
[345213963,1734091838230,-297.33588421,0.00027396,2]
[345213966,1734091838240,-166.9229805,0.00027396,2]
[345213968,1734091838250,-34740.31869815,0.00027397,2]
[345213970,1734091838259,-297.81152398,0.00027397,2]
[345213972,1734091838269,-501.44426392,0.00027397,7]
[345213974,1734091838279,-500.0,0.00027397,7]
[345213977,1734091838289,-500.0,0.00027397,7]
[345213979,1734091838299,-500.0,0.00027397,7]
[345213981,1734091838309,-500.0,0.00027397,7]
[345213982,1734091838319,-500.0,0.00027397,7]
[345213984,1734091838331,-488.63426432,0.00027397,7]
[345213986,1734091838341,-513.62066583,0.00027397,7]
[345213988,1734091838350,-500.53675271,0.00027397,7]
[345213990,1734091838359,-501.846231,0.00027397,7]
[345213992,1734091838370,-500.75125135,0.00027397,7]
[345213994,1734091838380,-500.0,0.00027397,7]
[345213996,1734091838390,-500.0,0.00027397,7]
[345213998,1734091838400,-500.0,0.00027397,7]
[345214000,1734091838410,-871.08,0.00027397,7]
[345214002,1734091838420,-500.0,0.00027397,7]
[345214004,1734091838429,-500.0,0.00027397,7]
[345214005,1734091838439,-571.61058962,0.00027397,7]
[345214006,1734091838449,-500.0,0.00027397,7]
[345214007,1734091838459,-500.0,0.00027397,7]
[345214008,1734091838469,-500.0,0.00027397,7]
[345214009,1734091838479,-565.92761609,0.00027397,7]
[345214010,1734091838489,-500.0,0.00027397,7]
[345214011,1734091838499,-500.0,0.00027397,7]
[345214012,1734091838510,-500.0,0.00027397,7]
[345214013,1734091838519,-500.0,0.00027397,7]
[345214014,1734091838530,-500.0,0.00027397,7]
[345214015,1734091838539,-259.7462732,0.00027397,7]
[345214016,1734091838549,-500.0,0.00027397,7]
[345214017,1734091838559,-500.0,0.00027397,7]
[345214018,1734091838569,-500.0,0.00027397,7]
[345214019,1734091838580,-1160.79,0.00027397,7]
[345214020,1734091838590,-500.0,0.00027397,7]
[345214021,1734091838600,-500.0,0.00027397,7]
[345214022,1734091838610,-500.0,0.00027397,7]
[345214023,1734091838619,-503.04726746,0.00027397,7]
[345214024,1734091838629,-501.91483036,0.00027397,7]
[345214025,1734091838639,-500.0,0.00027397,2]
[345214026,1734091838648,-507.20295015,0.00027397,7]
[345214027,1734091838659,-500.0,0.00027397,7]
[345214028,1734091838669,-500.0,0.00027397,7]
[345214029,1734091838678,-500.0,0.00027397,7]
[345214030,1734091838688,-500.0,0.00027397,7]
[345214031,1734091838697,-500.0,0.00027397,7]
[345214032,1734091838707,-500.0,0.00027397,7]
[345214033,1734091838716,-500.0,0.00027397,7]
[345214034,1734091838726,-500.0,0.00027397,7]
[345214035,1734091838735,-500.0,0.00027397,7]
[345214036,1734091838745,-500.0,0.00027397,7]
[345214037,1734091838755,-500.0,0.00027397,7]
[345214038,1734091838764,-901.64,0.00027397,7]
[345214039,1734091838773,-500.0,0.00027397,7]
[345214040,1734091838783,-502.03,0.00027397,7]
[345214041,1734091838794,-502.70163339,0.00027397,7]
[345214042,1734091838803,-587.26,0.00027397,7]
[345214043,1734091838813,-500.0,0.00027397,7]
[345214044,1734091838823,-500.0,0.00027397,7]
[345214045,1734091838833,-500.0,0.00027397,7]
[345214046,1734091838843,-500.0,0.00027397,7]
[345214047,1734091838852,-500.0,0.00027397,7]
[345214048,1734091838862,-500.0,0.00027397,7]
[345214049,1734091838872,-500.0,0.00027397,7]
[345214050,1734091838882,-500.0,0.00027397,7]
[345214051,1734091838892,-500.0,0.00027397,7]
[345214052,1734091838902,-500.0,0.00027397,7]
[345214053,1734091838911,-1260.84,0.00027397,7]
[345214054,1734091838920,-526.82289861,0.00027397,7]
[345214055,1734091838930,-500.0,0.00027397,7]
[345214056,1734091838940,-500.0,0.00027397,7]
[345214057,1734091838949,-500.0,0.00027397,7]
[345214058,1734091838959,-500.0,0.00027397,7]
[345214059,1734091838969,-500.0,0.00027397,7]
[345214060,1734091838979,-500.0,0.00027397,7]
[345214061,1734091838992,-500.0,0.00027397,7]
[345214062,1734091839002,-500.0,0.00027397,7]
[345214063,1734091839011,-500.0,0.00027397,7]
[345214064,1734091839022,-500.0,0.00027397,7]
[345214065,1734091839031,-500.0,0.00027397,7]
[345214066,1734091839040,-500.0,0.00027397,7]
[345214067,1734091839050,-500.0,0.00027397,7]
[345214068,1734091839060,-500.0,0.00027397,7]
[345214069,1734091839070,-510.53254818,0.00027397,7]
[345214070,1734091839081,-500.0,0.00027397,7]
[345214071,1734091839091,-500.0,0.00027397,7]
[345214072,1734091839101,-500.0,0.00027397,7]
[345214073,1734091839111,-500.0,0.00027397,7]
[345214074,1734091839121,-500.0,0.00027397,7]
[345214075,1734091839130,-1225.31,0.00027397,7]
[345214076,1734091839139,-500.0,0.00027397,7]
[345214077,1734091839148,-500.0,0.00027397,7]
[345214078,1734091839158,-500.0,0.00027397,7]
[345214079,1734091839168,-505.68259695,0.00027397,7]
[345214080,1734091839177,-500.0,0.00027397,7]
[345214081,1734091839187,-561.27141589,0.00027397,7]
[345214082,1734091839196,-500.0,0.00027397,7]
[345214083,1734091839206,-500.0,0.00027397,7]
[345214084,1734091839216,-1341.25,0.00027397,7]
[345214085,1734091839225,-616.04791256,0.00027397,7]
[345214086,1734091839235,-500.0,0.00027397,7]
[345214087,1734091839244,-209.01529642,0.00027397,7]
[345214088,1734091839253,-500.0,0.00027397,7]
[345214089,1734091839263,-151.0,0.00027397,7]
[345214090,1734091839272,-575.59,0.00027397,7]
[345214091,1734091839282,-500.0,0.00027397,7]
[345214092,1734091839292,-462.95849812,0.00027397,7]
[345214093,1734091839302,-500.0,0.00027397,7]
[345214094,1734091839312,-546.88,0.00027397,7]
[345214095,1734091839321,-500.0,0.00027397,7]
[345214096,1734091839334,-552.93,0.00027397,7]
[345214097,1734091839343,-500.0,0.00027397,7]
[345214098,1734091839352,-500.0,0.00027397,7]
[345214099,1734091839362,-651.03,0.00027397,7]
[345214100,1734091839371,-168.0,0.00027397,7]
[345214101,1734091839382,-500.0,0.00027397,7]
[345214102,1734091839392,-500.0,0.00027397,7]
[345214103,1734091839401,-500.0,0.00027397,7]
[345214104,1734091839411,-1089.68,0.00027397,7]
[345214105,1734091839422,-500.0,0.00027397,7]
[345214106,1734091839432,-500.0,0.00027397,7]
[345214107,1734091839443,-500.0,0.00027397,7]
[345214108,1734091839454,-733.84,0.00027397,7]
[345214109,1734091839464,-500.0,0.00027397,7]
[345214110,1734091839474,-500.0,0.00027397,7]
[345214111,1734091839484,-500.0,0.00027397,7]
[345214112,1734091839494,-500.0,0.00027397,7]
[345214113,1734091839504,-500.0,0.00027397,7]
[345214114,1734091839514,-1107.91,0.00027397,7]
[345214115,1734091839524,-500.0,0.00027397,7]
[345214116,1734091839533,-500.0,0.00027397,7]
[345214117,1734091839543,-500.0,0.00027397,7]
[345214118,1734091839552,-151.0,0.00027397,7]
[345214119,1734091839562,-500.0,0.00027397,7]
[345214120,1734091839571,-693.88,0.00027397,7]
[345214121,1734091839583,-684.71,0.00027397,7]
[345214122,1734091839592,-151.0,0.00027397,7]
[345214123,1734091839602,-500.0,0.00027397,7]
[345214124,1734091839611,-500.0,0.00027397,7]
[345214125,1734091839621,-857.5,0.00027397,7]
[345214126,1734091839630,-500.0,0.00027397,7]
[345214127,1734091839639,-500.0,0.00027397,7]
[345214128,1734091839649,-1568.0,0.00027397,7]
[345214129,1734091839658,-500.0,0.00027397,7]
[345214130,1734091839667,-500.0,0.00027397,7]
[345214131,1734091839676,-500.0,0.00027397,7]
[345214132,1734091839685,-1086.94,0.00027397,7]
[345214133,1734091839695,-500.0,0.00027397,7]
[345214134,1734091839705,-500.0,0.00027397,7]
[345214135,1734091839715,-500.0,0.00027397,7]
[345214136,1734091839725,-1844.52,0.00027397,7]
[345214137,1734091839735,-500.0,0.00027397,7]
[345214138,1734091839744,-500.0,0.00027397,7]
[345214139,1734091839754,-160.68936746,0.00027397,7]
[345214140,1734091839764,-729.39,0.00027397,7]
[345214141,1734091839777,-500.0,0.00027397,7]
[345214142,1734091839787,-625.06,0.00027397,7]
[345214143,1734091839798,-500.0,0.00027397,7]
[345214145,1734091839807,-926.09,0.00027397,7]
[345214147,1734091839816,-500.0,0.00027397,7]
[345214149,1734091839827,-500.0,0.00027397,7]
[345214150,1734091839836,-500.0,0.00027397,7]
[345214152,1734091839846,-500.0,0.00027397,7]
[345214154,1734091839855,-500.0,0.00027397,7]
[345214155,1734091839865,-500.0,0.00027397,7]
[345214156,1734091839875,-500.0,0.00027397,7]
[345214157,1734091839884,-500.0,0.00027397,7]
[345214158,1734091839895,-500.0,0.00027397,7]
[345214159,1734091839905,-500.0,0.00027397,7]
[345214160,1734091839914,-500.0,0.00027397,7]
[345214161,1734091839924,-3595.28,0.00027397,7]
[345214162,1734091839934,-500.0,0.00027397,7]
[345214163,1734091839943,-821.18,0.00027397,7]
[345214164,1734091839955,-500.0,0.00027397,7]
[345214165,1734091839964,-396.24956006,0.00027397,7]
[345214166,1734091839974,-501.59902271,0.00027397,7]
[345214167,1734091839988,-535.82,0.00027397,7]
[345214168,1734091839998,-539.01,0.00027397,7]
[345214169,1734091840008,-500.0,0.00027397,7]
[345214170,1734091840017,-500.0,0.00027397,7]
[345214171,1734091840027,-819.26,0.00027397,7]
[345214172,1734091840037,-500.0,0.00027397,7]
[345214173,1734091840046,-500.0,0.00027397,7]
[345214174,1734091840055,-500.0,0.00027397,7]
[345214175,1734091840067,-501.51396407,0.00027397,7]
[345214176,1734091840079,-500.0,0.00027397,7]
[345214177,1734091840089,-500.0,0.00027397,7]
[345214178,1734091840099,-505.40964948,0.00027397,7]
[345214179,1734091840109,-284.44679104,0.00027397,7]
[345214180,1734091840119,-677.7,0.00027397,7]
[345214181,1734091840129,-500.0,0.00027397,7]
[345214182,1734091840138,-151.0,0.00027397,7]
[345214183,1734091840147,-568.12,0.00027397,7]
[345214184,1734091840158,-500.0,0.00027397,7]
[345214185,1734091840167,-500.0,0.00027397,7]
[345214186,1734091840176,-500.0,0.00027397,7]
[345214187,1734091840187,-500.0,0.00027397,7]
[345214188,1734091840196,-500.0,0.00027397,7]
[345214189,1734091840205,-500.0,0.00027397,7]
[345214190,1734091840216,-500.0,0.00027397,7]
[345214191,1734091840225,-196.26683584,0.00027397,7]
[345214192,1734091840235,-500.0,0.00027397,7]
[345214193,1734091840244,-500.0,0.00027397,7]
[345214194,1734091840254,-500.0,0.00027397,7]
[345214195,1734091840264,-502.18981222,0.00027397,7]
[345214196,1734091840273,-500.0,0.00027397,7]
[345214197,1734091840283,-500.0,0.00027397,7]
[345214198,1734091840292,-500.0,0.00027397,7]
[345214199,1734091840302,-500.0,0.00027397,7]
[345214200,1734091840312,-500.0,0.00027397,7]
[345214201,1734091840321,-574.69,0.00027397,7]
[345214202,1734091840333,-500.0,0.00027397,7]
[345214203,1734091840343,-506.38219474,0.00027397,7]
[345214204,1734091840352,-432.13373361,0.00027397,7]
[345214205,1734091840362,-500.0,0.00027397,7]
[345214206,1734091840372,-500.0,0.00027397,7]
[345214207,1734091840382,-500.0,0.00027397,7]
[345214208,1734091840391,-505.20855303,0.00027397,7]
[345214209,1734091840402,-947.84,0.00027397,7]
[345214210,1734091840411,-500.0,0.00027397,7]
[345214211,1734091840420,-504.54760165,0.00027397,7]
[345214212,1734091840430,-500.0,0.00027397,7]
[345214213,1734091840440,-500.0,0.00027397,7]
[345214214,1734091840449,-500.0,0.00027397,7]
[345214215,1734091840459,-501.77866167,0.00027397,7]
[345214216,1734091840468,-517.28809568,0.00027397,7]
[345214217,1734091840478,-608.85,0.00027397,7]
[345214218,1734091840487,-502.96185952,0.00027397,7]
[345214219,1734091840498,-448.48385397,0.00027397,7]
[345214220,1734091840507,-500.0,0.00027397,7]
[345214221,1734091840518,-2488.32,0.00027397,7]
[345214222,1734091840528,-500.0,0.00027397,7]
[345214223,1734091840538,-421.60088186,0.00027397,7]
[345214224,1734091840548,-500.0,0.00027397,7]
[345214225,1734091840558,-500.0,0.00027397,7]
[345214226,1734091840567,-500.0,0.00027397,7]
[345214227,1734091840576,-876.08,0.00027397,7]
[345214228,1734091840586,-540.65,0.00027397,7]
[345214229,1734091840596,-500.0,0.00027397,7]
[345214230,1734091840606,-506.88,0.00027397,7]
[345214231,1734091840615,-500.0,0.00027397,7]
[345214232,1734091840624,-758.33,0.00027397,7]
[345214233,1734091840634,-500.0,0.00027397,7]
[345214234,1734091840644,-500.0,0.00027397,7]
[345214235,1734091840653,-508.31672961,0.00027397,7]
[345214236,1734091840663,-500.0,0.00027397,7]
[345214237,1734091840673,-504.41191617,0.00027397,7]
[345214238,1734091840682,-500.0,0.00027397,7]
[345214239,1734091840691,-500.0,0.00027397,7]
[345214240,1734091840700,-500.0,0.00027397,7]
[345214241,1734091840710,-500.0,0.00027397,7]
[345214242,1734091840719,-500.0,0.00027397,7]